Workbook

Sheet Instructions
B1: Disclaimer
A2: This is a simulation and interactive tool for memebers to use to understand their units performance
A3: This tool is does not guarantee exact results to PJM calculations based on telemetry data but should provide a close estimate that will allow for futher discussion, if necessary.
B5: Instructions
A6: Step 1: | B6: Enter is all unit information to set up template
B7: All green colored cells need to entered by the user
B8: **Data should be entered at 2 second granularity for the most accuracte calculation
B10: Unit Information: | C10: Enter Unit Information here:
B11: Unit Name: | C11: Enter Resource Name | D11: Will be used to help PJM staff troubleshoot if data discrepancy is found
B12: MarketID: | C12: Enter Units Makets Gateway ID | D12: Will be used to help PJM staff troubleshoot if data discrepancy is found
B13: Frequency: | C13: Low
B14: Regulation | C14: Yes/No if unit is on for regulation | D14: Used to determine expected MW of PFR response
B15: Eco Max: | C15: Enter Unit's ECOMAX | D15: Used in expected MW calculation
B16: Eco Min: | C16: Enter Unit's ECOMIN | D16: Used in expected MW calculation
B17: Zone | C17: Enter Unit's Control Zone | D17: Used for tracking purposes
B18: Fuel Type | C18: Enter Unit's Fuel Type | D18: Used for tracking purposes
B19: Governor Settings | C19: Enter Governor Data here:
B20: Droop (%): | C20: Enter unit's droop setting | D20: Enter as a percent, set at 5% droop as default
B21: Deadband (Hz): | C21: Enter unit's deadband setting | D21: Enter as a decmial (field is in Hz), set at 0.036 Hz as default
B22: Plot Times | C22: Enter Start Date/Time of Event here:
B23: Event Start: | C23: Enter event start time (T0) | D23: Will be used to calculated expected response and align frequency
B24: Plot Start: | C24: 2017-11-20T16:11:15
B25: Plot End: | C25: 2017-11-20T16:16:15
B26: Interval(seconds): | C26: Enter Data sampling interval (2, 10, etc) | D26: Used to set up data sampling table. 2sec samples are preferred if available
A29: Step 2: | B29: Enter in unit telemetry data for the set timestamps start in cell E43
B30: All green colored cells need to entered by the user
A32: Time | B32: Frequency (Hz) | C32: Unit Output (MW) | D32: Eco Max (MW) | E32: Eco Min (MW) | F32: PFR Capacity (MW) | G32: Expected Response (MW) | H32: Expected Response Graph (Net MW) | I32: Basepoint (MW) | L32: Output Timestamp | M32: Unit Output (MW)
A33: Time Stamp | B33: Enter Frequency Data | C33: Enter Unit Output Data (MW) | D33: calculated field 5% buffer on entered EcoMax for PFR calculation | E33: calculated field 5% buffer on entered EcoMin for PFR calculation | F33: calculated field PFR capability on unit | G33: calculated field Expected Response based on Droop equation | H33: calculated field total unit output expected based on droop equation | I33: Enter Unit Basepoint (ECOBP) Data | L33: Time Stamp | M33: Enter Unit Output Data (MW)
A36: Step 3: | B36: Review Results
B38: Actual Response = | C38: 0 | D38: MW | E38: Measured response at delta between -16-0 seconds and 20-52 seconds
B39: Expected Response = | C39: 2.372757349 | D39: MW | E39: Expected Response calculated as droop equation+ ramp rate
B40: Performance= | C40: 0 | D40: MW | E40: Performance will be calculated based on Actual and Expected Response
C41: Fail | E41: Pass/Fail assessment based on 50% performance score
B43: Ramp Rate | C43: -0.01658195972 | E43: Ramp Rate 1 minute before the event is calculated to offset expected response

Sheet Event
A1: Unit Information: | B1: Enter Unit Information here:
A2: Unit Name: | B2: Resource123
A3: MarketID: | B3: 123
A4: Frequency: | B4: =IF(AVERAGE(IF(ISNUMBER(F83:F99),F83:F99))<60,"Low",IF(AVERAGE(IF(ISNUMBER(F83:F99),F83:F99))>60,"High","Error")) -> Low
A5: Regulation | B5: No | R5: X Axis
A6: Eco Max: | B6: 19 | R6: Stop | S6: =MAX(IF(ISNUMBER(E43:E193),E43:E193)) -> 43080.37705
A7: Eco Min: | B7: 1 | R7: Y Axis
A8: Zone | B8: MidAtl
A9: Fuel Type | B9: Coal
A10: Governor Settings | B10: Enter Governor Data here: | C10: Example Data | R10: MAX | S10: =ROUND(MAX(MAX(IF(ISNUMBER(G43:G193),G43:G193)),MAX(IF(ISNUMBER(L43:L193),L43:L193)))+3,0) -> 14
A11: Droop (%): | B11: 0.05 | C11: 0.05 | R11: MIN | S11: =ROUND(MIN(MIN(IF(ISNUMBER(G43:G193),G43:G193)),MIN(IF(ISNUMBER(L43:L193),L43:L193)))-3,0) -> 2
A12: Deadband (Hz): | B12: 0.036 | C12: 0.036 | R12: PointA
A13: Plot Times | B13: Enter Start Date/Time of Event here: | Q13: =43 + (MATCH(R13,$E$43:$E$193) - 1) -> 73 | R13: =B14 -> 2017-12-11T08:58:57 | S13: =S10 -> 14
A14: Event Start: | B14: 2017-12-11T08:58:57 | R14: =B14 -> 2017-12-11T08:58:57 | S14: =S11 -> 2
A15: Plot Start: | B15: =B14-TIME(0,1,0) -> 2017-12-11T08:57:57 | R15: Point B
A16: Plot End: | B16: =B14+TIME(0,4,0) -> 2017-12-11T09:02:57 | Q16: =43 + (MATCH(R16,$E$43:$E$193) - 1) -> 91 | R16: =B14+TIME(0,0,36) -> 2017-12-11T08:59:33 | S16: =S10 -> 14
A17: Interval(seconds): | B17: 2 | R17: =B14+TIME(0,0,36) -> 2017-12-11T08:59:33 | S17: =S11 -> 2
A19: Unit Response (in MW) | B19: Actual Resp. | C19: Expected Resp.
A20: Point A = | B20: 0 | C20: 0
A21: Point B = | B21: =B85 -> 0.2461877991 | C21: =A85 -> 0.01066076126
A23: Unit Output (in MW) | B23: Actual Resp. | C23: Expected Resp.
A24: Point A = | B24: =B73 -> 4.535369873 | C24: =A73 -> 4.535369873
A25: Point B = | B25: =B84 -> 4.781557672 | C25: =A84 -> 4.612806461
A27: Actual Response = | B27: =$B$85-$B$32 -> 0.2627697588 | C27: MW
A28: Expected Response = | B28: =IF($L$43=0,"Off-line",IF($B$5= "Yes", "Regulation",IF(OR((A73>=$H$43),($I$43>=A73)),"No Capacity",$A$85+$B$32))) -> -0.005921198462 | C28: MW
A29: Performance= | B29: =IFERROR(MIN(MAX((1-(B28-B27)/B28),0),1),B28) -> 0 | C29: MW
B30: =IFERROR(IF(B29>=0.5,"Pass","Fail"),"") -> Fail
A32: Ramp Rate | B32: =($G$73-$G$43)*0.53 -> -0.01658195972
K41: =INDEX(D43:D193,MATCH(TRUE,INDEX(D43:D193<>0,),0)) -> 0.005032857259 | L41: =VLOOKUP(K41,$D$43:$G$193,4,FALSE) -> 4.586404324 | Q41: =B14-TIME(0,10,0) -> 2017-12-11T08:48:57
E42: Time | F42: Frequency (Hz) | G42: Unit Output (MW) | H42: Eco Max (MW) | I42: Eco Min (MW) | J42: PFR Capacity (MW) | K42: Expected Response (MW) | L42: Expected Response Graph (Net MW) | M42: Basepoint (MW) | P42: Output Timestamp | Q42: Unit Output (MW) | R42: Regulation | S42: Unit Ramp before Event (MW/min)
D43: =K43 -> 0 | E43: =B15 -> 43080.37358 | F43: 60.01620102 | G43: 4.594136715 | H43: =B6 -> 19 | I43: =B7 -> 1 | J43: =IF($B$4="low",(H43-(H43*0.05))-G43,IF($B$4="high",G43-(I43+(I43 *0.05)),"error")) -> 13.45586329 | K43: =IF(F43<(60-$B$12),((-1)*H43*((F43-60+$B$12)/(60*$B$11-$B$12))),IF(F43>(60+$B$12),((-1)*H43*((F43-60-$B$12)/(60*$B$11-$B$12))),0)) -> 0 | L43: =IF(G43<1,0,IF(K43=0,(G43+K43),($L$41+K43))) -> 4.594136715 | P43: =Q41 -> 43080.36733 | Q43: 400 | R43: =B5 -> No | S43: =Q43 -> 400 | T43: MW-10min before
D44: =K44 -> 0 | E44: =IF(E43+TIME(0,0,$B$17) > $B$16,NA(),E43+TIME(0,0,$B$17)) -> 43080.3736 | F44: 60.01649857 | G44: 4.616110325 | H44: =IF(ISERROR(E44),NA(),H43) -> 19 | I44: =IF(ISERROR(E44),NA(),I43) -> 1 | J44: =IF($B$4="low",(H44-(H44*0.05))-G44,IF($B$4="high",G44-(I44+(I44 *0.05)),"error")) -> 13.43388968 | K44: =IF(ISERROR(E44),NA(),IF(F44<(60-$B$12),((-1)*H44*((F44-60+$B$12)/(60*$B$11-$B$12))),IF(F44>(60+$B$12),((-1)*H44*((F44-60-$B$12)/(60*$B$11-$B$12))),0))) -> 0 | L44: =IF(ISERROR(E44),NA(),IF(G44<1,0,IF(K44=0,(G44+K44),($L$41+K44)))) -> 4.616110325 | P44: =P43+TIME(0,0,2) -> 43080.36735 | Q44: 400 | S44: =Q343 -> 400 | T44: MW- 0min before
D45: 0 | E45: =IF(E44+TIME(0,0,$B$17) > $B$16,NA(),E44+TIME(0,0,$B$17)) -> 43080.37362 | F45: 60.01710129 | G45: 4.638083935 | H45: =IF(ISERROR(E45),NA(),H44) -> 19 | I45: =IF(ISERROR(E45),NA(),I44) -> 1 | J45: 13.41191607 | K45: =IF(ISERROR(E45),NA(),IF(F45<(60-$B$12),((-1)*H45*((F45-60+$B$12)/(60*$B$11-$B$12))),IF(F45>(60+$B$12),((-1)*H45*((F45-60-$B$12)/(60*$B$11-$B$12))),0))) -> 0 | L45: =IF(ISERROR(E45),NA(),IF(G45<1,0,IF(K45=0,(G45+K45),($L$41+K45)))) -> 4.638083935 | P45: =P44+TIME(0,0,2) -> 43080.36737 | Q45: 400 | S45: =(S44-S43)/10 -> 0 | T45: MW/min
D46: 0 | E46: 43080.37365 | F46: 60.01820374 | G46: 4.660057545 | H46: 19 | I46: 1 | J46: 13.38994246 | K46: 0 | L46: 4.660057545 | P46: 43080.3674 | Q46: 400
D47: 0 | E47: 43080.37367 | F47: 60.01850128 | G47: 4.682031631 | H47: 19 | I47: 1 | J47: 13.36796837 | K47: 0 | L47: 4.682031631 | P47: 43080.36742 | Q47: 400
D48: 0 | E48: 43080.37369 | F48: 60.01850128 | G48: 4.704005241 | H48: 19 | I48: 1 | J48: 13.34599476 | K48: 0 | L48: 4.704005241 | P48: 43080.36744 | Q48: 400
D49: 0 | E49: 43080.37372 | F49: 60.01850128 | G49: 4.725978851 | H49: 19 | I49: 1 | J49: 13.32402115 | K49: 0 | L49: 4.725978851 | P49: 43080.36747 | Q49: 400
D50: 0 | E50: 43080.37374 | F50: 60.01790237 | G50: 4.747952461 | H50: 19 | I50: 1 | J50: 13.30204754 | K50: 0 | L50: 4.747952461 | P50: 43080.36749 | Q50: 400
D51: 0 | E51: 43080.37376 | F51: 60.01699829 | G51: 4.759022713 | H51: 19 | I51: 1 | J51: 13.29097729 | K51: 0 | L51: 4.759022713 | P51: 43080.36751 | Q51: 400
D52: 0 | E52: 43080.37378 | F52: 60.01699829 | G52: 4.753789902 | H52: 19 | I52: 1 | J52: 13.2962101 | K52: 0 | L52: 4.753789902 | P52: 43080.36753 | Q52: 400
D53: 0 | E53: 43080.37381 | F53: 60.01660538 | G53: 4.748557091 | H53: 19 | I53: 1 | J53: 13.30144291 | K53: 0 | L53: 4.748557091 | P53: 43080.36756 | Q53: 400
D54: 0 | E54: 43080.37383 | F54: 60.01560211 | G54: 4.74332428 | H54: 19 | I54: 1 | J54: 13.30667572 | K54: 0 | L54: 4.74332428 | P54: 43080.36758 | Q54: 400
D55: 0 | E55: 43080.37385 | F55: 60.01499939 | G55: 4.738091469 | H55: 19 | I55: 1 | J55: 13.31190853 | K55: 0 | L55: 4.738091469 | P55: 43080.3676 | Q55: 400
D56: 0 | E56: 43080.37388 | F56: 60.01540375 | G56: 4.732858658 | H56: 19 | I56: 1 | J56: 13.31714134 | K56: 0 | L56: 4.732858658 | P56: 43080.36763 | Q56: 400
D57: 0 | E57: 43080.3739 | F57: 60.01599884 | G57: 4.727625847 | H57: 19 | I57: 1 | J57: 13.32237415 | K57: 0 | L57: 4.727625847 | P57: 43080.36765 | Q57: 400
D58: 0 | E58: 43080.37392 | F58: 60.0155983 | G58: 4.722393036 | H58: 19 | I58: 1 | J58: 13.32760696 | K58: 0 | L58: 4.722393036 | P58: 43080.36767 | Q58: 400
D59: 0 | E59: 43080.37395 | F59: 60.01519775 | G59: 4.717160225 | H59: 19 | I59: 1 | J59: 13.33283978 | K59: 0 | L59: 4.717160225 | P59: 43080.3677 | Q59: 400
D60: 0 | E60: 43080.37397 | F60: 60.01549911 | G60: 4.711927414 | H60: 19 | I60: 1 | J60: 13.33807259 | K60: 0 | L60: 4.711927414 | P60: 43080.36772 | Q60: 400
D61: 0 | E61: 43080.37399 | F61: 60.01529694 | G61: 4.706694603 | H61: 19 | I61: 1 | J61: 13.3433054 | K61: 0 | L61: 4.706694603 | P61: 43080.36774 | Q61: 400
D62: 0 | E62: 43080.37402 | F62: 60.01499939 | G62: 4.701461792 | H62: 19 | I62: 1 | J62: 13.34853821 | K62: 0 | L62: 4.701461792 | P62: 43080.36777 | Q62: 400
D63: 0 | E63: 43080.37404 | F63: 60.01560211 | G63: 4.696228981 | H63: 19 | I63: 1 | J63: 13.35377102 | K63: 0 | L63: 4.696228981 | P63: 43080.36779 | Q63: 400
D64: 0 | E64: 43080.37406 | F64: 60.01649857 | G64: 4.69099617 | H64: 19 | I64: 1 | J64: 13.35900383 | K64: 0 | L64: 4.69099617 | P64: 43080.36781 | Q64: 400
D65: 0 | E65: 43080.37409 | F65: 60.01670074 | G65: 4.614329815 | H65: 19 | I65: 1 | J65: 13.43567019 | K65: 0 | L65: 4.614329815 | P65: 43080.36784 | Q65: 400
D66: 0 | E66: 43080.37411 | F66: 60.01679993 | G66: 4.507889748 | H66: 19 | I66: 1 | J66: 13.54211025 | K66: 0 | L66: 4.507889748 | P66: 43080.36786 | Q66: 400
D67: 0 | E67: 43080.37413 | F67: 60.01649857 | G67: 4.515741348 | H67: 19 | I67: 1 | J67: 13.53425865 | K67: 0 | L67: 4.515741348 | P67: 43080.36788 | Q67: 400
D68: 0 | E68: 43080.37416 | F68: 60.01590347 | G68: 4.523592472 | H68: 19 | I68: 1 | J68: 13.52640753 | K68: 0 | L68: 4.523592472 | P68: 43080.36791 | Q68: 400
D69: 0 | E69: 43080.37418 | F69: 60.01499939 | G69: 4.531444073 | H69: 19 | I69: 1 | J69: 13.51855593 | K69: 0 | L69: 4.531444073 | P69: 43080.36793 | Q69: 400
D70: 0 | E70: 43080.3742 | F70: 60.01440048 | G70: 4.539295673 | H70: =IF(ISERROR(E70),NA(),H69) -> 19 | I70: 1 | J70: 13.51070433 | K70: 0 | L70: 4.539295673 | P70: 43080.36795 | Q70: 400
A71: Expected | B71: Actual | D71: 0 | E71: 43080.37422 | F71: 60.01289749 | G71: 4.547147274 | H71: 19 | I71: 1 | J71: 13.50285273 | K71: 0 | L71: 4.547147274 | P71: 43080.36797 | Q71: 400
A72: Point A | D72: 0 | E72: 43080.37425 | F72: 60.01200104 | G72: 4.554998398 | H72: 19 | I72: 1 | J72: 13.4950016 | K72: 0 | L72: 4.554998398 | P72: 43080.368 | Q72: 400
A73: =AVERAGE(INDIRECT("L"&$A$75&":L"&$A$76)) -> 4.535369873 | B73: =AVERAGE(INDIRECT("G"&$A$75&":G"&$A$76)) -> 4.535369873 | C73: MW output | D73: 0 | E73: 43080.37427 | F73: 60.00094223 | G73: 4.562849998 | H73: 19 | I73: 1 | J73: 13.48715 | K73: 0 | L73: 4.562849998 | P73: 43080.36802 | Q73: 400
A74: =AVERAGE(INDIRECT("K"&$A$75&":K"&$A$76)) -> 0 | B74: =AVERAGE(INDIRECT("K"&$A$75&":K"&$A$76)) -> 0 | C74: PFR expected | D74: 0 | E74: 43080.37429 | F74: 59.98450089 | G74: 4.570701599 | H74: 19 | I74: 1 | J74: 13.4792984 | K74: 0 | L74: 4.570701599 | P74: 43080.36804 | Q74: 400
A75: =43 + (MATCH(B75,$E$43:$E$193) - 1) -> 66 | B75: =R13-TIME(0,0,14) -> 2017-12-11T08:58:43 | D75: 0 | E75: 43080.37432 | F75: 59.97719193 | G75: 4.578552723 | H75: 19 | I75: 1 | J75: 13.47144728 | K75: 0 | L75: 4.578552723 | P75: 43080.36807 | Q75: 400
A76: =Q13 -> 73 | B76: =R13 -> 2017-12-11T08:58:57 | D76: 0.005032857259 | E76: 43080.37434 | F76: 59.96321487 | G76: 4.586404324 | H76: 19 | I76: 1 | J76: 13.46359568 | K76: 0.005032857259 | L76: 4.591437181 | P76: 43080.36809 | Q76: 400
D77: 0.03459676107 | E77: 43080.37436 | F77: 59.95860291 | G77: 4.594255924 | H77: 19 | I77: 1 | J77: 13.45574408 | K77: 0.03459676107 | L77: 4.621001085 | P77: 43080.36811 | Q77: 400
D78: 0.03846036471 | E78: 43080.37439 | F78: 59.95800018 | G78: 4.602107525 | H78: 19 | I78: 1 | J78: 13.44789248 | K78: 0.03846036471 | L78: 4.624864688 | P78: 43080.36814 | Q78: 400
D79: 0.03846036471 | E79: 43080.37441 | F79: 59.95800018 | G79: 4.609958649 | H79: 19 | I79: 1 | J79: 13.44004135 | K79: 0.03846036471 | L79: 4.624864688 | P79: 43080.36816 | Q79: 400
D80: 0.03846036471 | E80: 43080.37443 | F80: 59.95800018 | G80: 4.717933655 | H80: 19 | I80: 1 | J80: 13.33206635 | K80: 0.03846036471 | L80: 4.624864688 | P80: 43080.36818 | Q80: 400
D81: 0.03205362956 | E81: 43080.37446 | F81: 59.95899963 | G81: 4.870991707 | H81: 19 | I81: 1 | J81: 13.17900829 | K81: 0.03205362956 | L81: 4.618457953 | P81: 43080.36821 | Q81: 400
D82: 0.02373954577 | E82: 43080.37448 | F82: 59.96029663 | G82: 4.870991707 | H82: 19 | I82: 1 | J82: 13.17900829 | K82: 0.02373954577 | L82: 4.610143869 | P82: 43080.36823 | Q82: 400
A83: Point B | D83: 0.02051172501 | E83: 43080.3745 | F83: 59.96080017 | G83: 4.870991707 | H83: 19 | I83: 1 | J83: 13.17900829 | K83: 0.02051172501 | L83: 4.606916049 | P83: 43080.36825 | Q83: 400
A84: =AVERAGE(INDIRECT("L"&$A$86&":L"&$A$87)) -> 4.612806461 | B84: =AVERAGE(INDIRECT("G"&$A$86&":G"&$A$87)) -> 4.781557672 | C84: MW output | D84: 0.01280897092 | E84: 43080.37453 | F84: 59.9620018 | G84: 4.870991707 | H84: 19 | I84: 1 | J84: 13.17900829 | K84: 0.01280897092 | L84: 4.599213294 | P84: 43080.36828 | Q84: 400
A85: =AVERAGE(INDIRECT("K"&$A$86&":K"&$A$87)) -> 0.01066076126 | B85: =AVERAGE(INDIRECT("G"&$A$86&":G"&$A$87))-B73 -> 0.2461877991 | C85: PFR expected | D85: 0.01280897092 | E85: 43080.37455 | F85: 59.9620018 | G85: 4.782120228 | H85: 19 | I85: 1 | J85: 13.26787977 | K85: 0.01280897092 | L85: 4.599213294 | P85: 43080.3683 | Q85: 400
A86: =43 + (MATCH(B86,$E$43:$E$193) - 1) -> 83 | B86: =R16-TIME(0,0,16) -> 2017-12-11T08:59:17 | D86: 0.01280897092 | E86: 43080.37457 | F86: 59.9620018 | G86: 4.651247978 | H86: 19 | I86: 1 | J86: 13.39875202 | K86: 0.01280897092 | L86: 4.599213294 | P86: 43080.36832 | Q86: 400
A87: =43 + (MATCH(B87,$E$43:$E$193) - 1) -> 99 | B87: =R16+TIME(0,0,16) -> 2017-12-11T08:59:49 | D87: 0.007698254708 | E87: 43080.37459 | F87: 59.96279907 | G87: 4.651247978 | H87: 19 | I87: 1 | J87: 13.39875202 | K87: 0.007698254708 | L87: 4.594102578 | P87: 43080.36834 | Q87: 400
D88: 0 | E88: 43080.37462 | F88: 59.9640007 | G88: 4.651247978 | H88: 19 | I88: 1 | J88: 13.39875202 | K88: 0 | L88: 4.651247978 | P88: 43080.36837 | Q88: 400
D89: 0 | E89: 43080.37464 | F89: 59.9640007 | G89: 4.651247978 | H89: 19 | I89: 1 | J89: 13.39875202 | K89: 0 | L89: 4.651247978 | P89: 43080.36839 | Q89: 400
D90: 0 | E90: 43080.37466 | F90: 59.9640007 | G90: 4.724320412 | H90: 19 | I90: 1 | J90: 13.32567959 | K90: 0 | L90: 4.724320412 | P90: 43080.36841 | Q90: 400
D91: 0.005057310447 | E91: 43080.37469 | F91: 59.96321106 | G91: 4.833611488 | H91: 19 | I91: 1 | J91: 13.21638851 | K91: 0.005057310447 | L91: 4.591461634 | P91: 43080.36844 | Q91: 400
D92: 0.01280897092 | E92: 43080.37471 | F92: 59.9620018 | G92: 4.831682682 | H92: 19 | I92: 1 | J92: 13.21831732 | K92: 0.01280897092 | L92: 4.599213294 | P92: 43080.36846 | Q92: 400
D93: 0.01408053667 | E93: 43080.37473 | F93: 59.96180344 | G93: 4.829753876 | H93: 19 | I93: 1 | J93: 13.22024612 | K93: 0.01408053667 | L93: 4.60048486 | P93: 43080.36848 | Q93: 400
D94: 0.01601233849 | E94: 43080.37476 | F94: 59.96150208 | G94: 4.827825069 | H94: 19 | I94: 1 | J94: 13.22217493 | K94: 0.01601233849 | L94: 4.602416662 | P94: 43080.36851 | Q94: 400
D95: 0.01601233849 | E95: 43080.37478 | F95: 59.96150208 | G95: 4.825896263 | H95: 19 | I95: 1 | J95: 13.22410374 | K95: 0.01601233849 | L95: 4.602416662 | P95: 43080.36853 | Q95: 400
D96: 0.01601233849 | E96: 43080.3748 | F96: 59.96150208 | G96: 4.82396698 | H96: 19 | I96: 1 | J96: 13.22603302 | K96: 0.01601233849 | L96: 4.602416662 | P96: 43080.36855 | Q96: 400
D97: 0.01601233849 | E97: 43080.37483 | F97: 59.96150208 | G97: 4.822038174 | H97: 19 | I97: 1 | J97: 13.22796183 | K97: 0.01601233849 | L97: 4.602416662 | P97: 43080.36858 | Q97: 400
D98: 0.01219764123 | E98: 43080.37485 | F98: 59.96209717 | G98: 4.820109367 | H98: 19 | I98: 1 | J98: 13.22989063 | K98: 0.01219764123 | L98: 4.598601965 | P98: 43080.3686 | Q98: 400
D99: 0.006402235765 | E99: 43080.37487 | F99: 59.96300125 | G99: 4.818180561 | H99: 19 | I99: 1 | J99: 13.23181944 | K99: 0.006402235765 | L99: 4.592806559 | P99: 43080.36862 | Q99: 400
D100: 0.006402235765 | E100: 43080.3749 | F100: 59.96300125 | G100: 4.816251755 | H100: 19 | I100: 1 | J100: 13.23374825 | K100: 0.006402235765 | L100: 4.592806559 | P100: 43080.36865 | Q100: 400
D101: 0.00767380152 | E101: 43080.37492 | F101: 59.96280289 | G101: 4.814322948 | H101: 19 | I101: 1 | J101: 13.23567705 | K101: 0.00767380152 | L101: 4.594078125 | P101: 43080.36867 | Q101: 400
D102: 0.0108771691 | E102: 43080.37494 | F102: 59.96230316 | G102: 4.812393665 | H102: 19 | I102: 1 | J102: 13.23760633 | K102: 0.0108771691 | L102: 4.597281493 | P102: 43080.36869 | Q102: 400
D103: 0.01024138622 | E103: 43080.37497 | F103: 59.96240234 | G103: 4.810464859 | H103: 19 | I103: 1 | J103: 13.23953514 | K103: 0.01024138622 | L103: 4.59664571 | P103: 43080.36872 | Q103: 400
D104: 0.006402235765 | E104: 43080.37499 | F104: 59.96300125 | G104: 4.808536053 | H104: 19 | I104: 1 | J104: 13.24146395 | K104: 0.006402235765 | L104: 4.592806559 | P104: 43080.36874 | Q104: 400
D105: 0.00513067001 | E105: 43080.37501 | F105: 59.96319962 | G105: 4.806607246 | H105: 19 | I105: 1 | J105: 13.24339275 | K105: 0.00513067001 | L105: 4.591534994 | P105: 43080.36876 | Q105: 400
D106: 0.003198868189 | E106: 43080.37503 | F106: 59.96350098 | G106: 4.80467844 | H106: 19 | I106: 1 | J106: 13.24532156 | K106: 0.003198868189 | L106: 4.589603192 | P106: 43080.36878 | Q106: 400
D107: 0.00960560334 | E107: 43080.37506 | F107: 59.96250153 | G107: 4.802749634 | H107: 19 | I107: 1 | J107: 13.24725037 | K107: 0.00960560334 | L107: 4.596009927 | P107: 43080.36881 | Q107: 400
D108: =K108 -> 0.01924015925 | E108: 43080.37508 | F108: 59.96099854 | G108: 4.800820351 | H108: 19 | I108: 1 | J108: =IF($B$4="low",(H108-(H108*0.05))-G108,IF($B$4="high",G108-(I108+(I108 *0.05)),"error")) -> 13.24917965 | K108: 0.01924015925 | L108: 4.605644483 | P108: 43080.36883 | Q108: 400
D109: 0.01924015925 | E109: =IF(E108+TIME(0,0,$B$17) > $B$16,NA(),E108+TIME(0,0,$B$17)) -> 43080.3751 | F109: 59.96099854 | G109: 4.798891544 | H109: =IF(ISERROR(E109),NA(),H108) -> 19 | I109: =IF(ISERROR(E109),NA(),I108) -> 1 | J109: 13.25110846 | K109: =IF(ISERROR(E109),NA(),IF(F109<(60-$B$12),((-1)*H109*((F109-60+$B$12)/(60*$B$11-$B$12))),IF(F109>(60+$B$12),((-1)*H109*((F109-60-$B$12)/(60*$B$11-$B$12))),0))) -> 0.01924015925 | L109: =IF(ISERROR(E109),NA(),IF(G109<1,0,IF(K109=0,(G109+K109),($L$41+K109)))) -> 4.605644483 | P109: =P108+TIME(0,0,2) -> 43080.36885 | Q109: 400
D110: 0.01924015925 | E110: 43080.37513 | F110: 59.96099854 | G110: 4.871834755 | H110: 19 | I110: 1 | J110: 13.17816525 | K110: 0.01924015925 | L110: 4.605644483 | P110: 43080.36888 | Q110: 400
D111: 0.01664812137 | E111: 43080.37515 | F111: 59.96140289 | G111: 4.980864048 | H111: 19 | I111: 1 | J111: 13.06913595 | K111: 0.01664812137 | L111: 4.603052445 | P111: 43080.3689 | Q111: 400
D112: 0.01153740516 | E112: 43080.37517 | F112: 59.96220016 | G112: 4.980864048 | H112: 19 | I112: 1 | J112: 13.06913595 | K112: 0.01153740516 | L112: 4.597941729 | P112: 43080.36892 | Q112: 400
D113: 0.008309584398 | E113: 43080.3752 | F113: 59.9627037 | G113: 4.980864048 | H113: 19 | I113: 1 | J113: 13.06913595 | K113: 0.008309584398 | L113: 4.594713908 | P113: 43080.36895 | Q113: 400
D114: 0.006402235765 | E114: 43080.37522 | F114: 59.96300125 | G114: 4.980864048 | H114: 19 | I114: 1 | J114: 13.06913595 | K114: 0.006402235765 | L114: 4.592806559 | P114: 43080.36897 | Q114: 400
D115: 0.003859104254 | E115: 43080.37524 | F115: 59.96339798 | G115: 5.314255714 | H115: 19 | I115: 1 | J115: 12.73574429 | K115: 0.003859104254 | L115: 4.590263428 | P115: 43080.36899 | Q115: 400
D116: 0 | E116: 43080.37527 | F116: 59.9640007 | G116: 5.823215961 | H116: 19 | I116: 1 | J116: 12.22678404 | K116: 0 | L116: 5.823215961 | P116: 43080.36902 | Q116: 400
D117: 0 | E117: 43080.37529 | F117: 59.9640007 | G117: 5.823215961 | H117: 19 | I117: 1 | J117: 12.22678404 | K117: 0 | L117: 5.823215961 | P117: 43080.36904 | Q117: 400
D118: 0 | E118: 43080.37531 | F118: 59.96439743 | G118: 5.823215961 | H118: 19 | I118: 1 | J118: 12.22678404 | K118: 0 | L118: 5.823215961 | P118: 43080.36906 | Q118: 400
D119: 0 | E119: 43080.37534 | F119: 59.96500015 | G119: 5.823215961 | H119: 19 | I119: 1 | J119: 12.22678404 | K119: 0 | L119: 5.823215961 | P119: 43080.36909 | Q119: 400
D120: 0 | E120: 43080.37536 | F120: 59.96520233 | G120: 5.763990402 | H120: 19 | I120: 1 | J120: 12.2860096 | K120: 0 | L120: 5.763990402 | P120: 43080.36911 | Q120: 400
D121: 0 | E121: 43080.37538 | F121: 59.96530151 | G121: 5.679987907 | H121: 19 | I121: 1 | J121: 12.37001209 | K121: 0 | L121: 5.679987907 | P121: 43080.36913 | Q121: 400
D122: 0 | E122: 43080.37541 | F122: 59.96500015 | G122: 5.68812561 | H122: 19 | I122: 1 | J122: 12.36187439 | K122: 0 | L122: 5.68812561 | P122: 43080.36916 | Q122: 400
D123: 0 | E123: 43080.37543 | F123: 59.96560287 | G123: 5.69626379 | H123: 19 | I123: 1 | J123: 12.35373621 | K123: 0 | L123: 5.69626379 | P123: 43080.36918 | Q123: 400
D124: 0 | E124: 43080.37545 | F124: 59.96649933 | G124: 5.704401493 | H124: 19 | I124: 1 | J124: 12.34559851 | K124: 0 | L124: 5.704401493 | P124: 43080.3692 | Q124: 400
D125: 0 | E125: 43080.37547 | F125: 59.96730804 | G125: 5.712539196 | H125: 19 | I125: 1 | J125: 12.3374608 | K125: 0 | L125: 5.712539196 | P125: 43080.36922 | Q125: 400
D126: 0 | E126: 43080.3755 | F126: 59.96829605 | G126: 5.720677376 | H126: 19 | I126: 1 | J126: 12.32932262 | K126: 0 | L126: 5.720677376 | P126: 43080.36925 | Q126: 400
D127: 0 | E127: 43080.37552 | F127: 59.9679985 | G127: 5.728815079 | H127: 19 | I127: 1 | J127: 12.32118492 | K127: 0 | L127: 5.728815079 | P127: 43080.36927 | Q127: 400
D128: 0 | E128: 43080.37554 | F128: 59.96839905 | G128: 5.736952782 | H128: 19 | I128: 1 | J128: 12.31304722 | K128: 0 | L128: 5.736952782 | P128: 43080.36929 | Q128: 400
D129: 0 | E129: 43080.37557 | F129: 59.96900177 | G129: 5.745090485 | H129: 19 | I129: 1 | J129: 12.30490952 | K129: 0 | L129: 5.745090485 | P129: 43080.36932 | Q129: 400
D130: 0 | E130: 43080.37559 | F130: 59.96900177 | G130: 5.573139191 | H130: 19 | I130: 1 | J130: 12.47686081 | K130: 0 | L130: 5.573139191 | P130: 43080.36934 | Q130: 400
D131: 0 | E131: 43080.37561 | F131: 59.96940231 | G131: 5.310480118 | H131: 19 | I131: 1 | J131: 12.73951988 | K131: 0 | L131: 5.310480118 | P131: 43080.36936 | Q131: 400
D132: 0 | E132: 43080.37564 | F132: 59.96980286 | G132: 5.310480118 | H132: 19 | I132: 1 | J132: 12.73951988 | K132: 0 | L132: 5.310480118 | P132: 43080.36939 | Q132: 400
D133: 0 | E133: 43080.37566 | F133: 59.96930313 | G133: 5.310480118 | H133: 19 | I133: 1 | J133: 12.73951988 | K133: 0 | L133: 5.310480118 | P133: 43080.36941 | Q133: 400
D134: 0 | E134: 43080.37568 | F134: 59.96900177 | G134: 5.310480118 | H134: 19 | I134: 1 | J134: 12.73951988 | K134: 0 | L134: 5.310480118 | P134: 43080.36943 | Q134: 400
D135: 0 | E135: 43080.37571 | F135: 59.96840286 | G135: 5.237635612 | H135: 19 | I135: 1 | J135: 12.81236439 | K135: 0 | L135: 5.237635612 | P135: 43080.36946 | Q135: 400
D136: 0 | E136: 43080.37573 | F136: 59.96709824 | G136: 5.127359867 | H136: 19 | I136: 1 | J136: 12.92264013 | K136: 0 | L136: 5.127359867 | P136: 43080.36948 | Q136: 400
D137: 0 | E137: 43080.37575 | F137: 59.96670151 | G137: 5.127359867 | H137: 19 | I137: 1 | J137: 12.92264013 | K137: 0 | L137: 5.127359867 | P137: 43080.3695 | Q137: 400
D138: 0 | E138: 43080.37578 | F138: 59.96699905 | G138: 5.127359867 | H138: 19 | I138: 1 | J138: 12.92264013 | K138: 0 | L138: 5.127359867 | P138: 43080.36953 | Q138: 400
D139: 0 | E139: 43080.3758 | F139: 59.96760178 | G139: 5.127359867 | H139: 19 | I139: 1 | J139: 12.92264013 | K139: 0 | L139: 5.127359867 | P139: 43080.36955 | Q139: 400
D140: 0 | E140: 43080.37582 | F140: 59.96889496 | G140: 5.054845333 | H140: 19 | I140: 1 | J140: 12.99515467 | K140: 0 | L140: 5.054845333 | P140: 43080.36957 | Q140: 400
D141: 0 | E141: 43080.37584 | F141: 59.9695015 | G141: 4.944240093 | H141: 19 | I141: 1 | J141: 13.10575991 | K141: 0 | L141: 4.944240093 | P141: 43080.36959 | Q141: 400
D142: 0 | E142: 43080.37587 | F142: 59.96990585 | G142: 4.944240093 | H142: 19 | I142: 1 | J142: 13.10575991 | K142: 0 | L142: 4.944240093 | P142: 43080.36962 | Q142: 400
D143: 0 | E143: 43080.37589 | F143: 59.97050095 | G143: 4.944240093 | H143: 19 | I143: 1 | J143: 13.10575991 | K143: 0 | L143: 4.944240093 | P143: 43080.36964 | Q143: 400
D144: 0 | E144: 43080.37591 | F144: 59.97030258 | G144: 4.944240093 | H144: 19 | I144: 1 | J144: 13.10575991 | K144: 0 | L144: 4.944240093 | P144: 43080.36966 | Q144: 400
D145: 0 | E145: 43080.37594 | F145: 59.97000122 | G145: 4.871386528 | H145: 19 | I145: 1 | J145: 13.17861347 | K145: 0 | L145: 4.871386528 | P145: 43080.36969 | Q145: 400
D146: 0 | E146: 43080.37596 | F146: 59.97019958 | G146: 4.761119843 | H146: 19 | I146: 1 | J146: 13.28888016 | K146: 0 | L146: 4.761119843 | P146: 43080.36971 | Q146: 400
D147: 0 | E147: 43080.37598 | F147: 59.97050095 | G147: 4.761119843 | H147: 19 | I147: 1 | J147: 13.28888016 | K147: 0 | L147: 4.761119843 | P147: 43080.36973 | Q147: 400
D148: 0 | E148: 43080.37601 | F148: 59.9709053 | G148: 4.761119843 | H148: 19 | I148: 1 | J148: 13.28888016 | K148: 0 | L148: 4.761119843 | P148: 43080.36976 | Q148: 400
D149: 0 | E149: 43080.37603 | F149: 59.97190475 | G149: 4.761119843 | H149: 19 | I149: 1 | J149: 13.28888016 | K149: 0 | L149: 4.761119843 | P149: 43080.36978 | Q149: 400
D150: 0 | E150: 43080.37605 | F150: 59.9734993 | G150: 5.406357765 | H150: 19 | I150: 1 | J150: 12.64364223 | K150: 0 | L150: 5.406357765 | P150: 43080.3698 | Q150: 400
D151: 0 | E151: 43080.37608 | F151: 59.97480011 | G151: 6.37257576 | H151: 19 | I151: 1 | J151: 11.67742424 | K151: 0 | L151: 6.37257576 | P151: 43080.36983 | Q151: 400
D152: 0 | E152: 43080.3761 | F152: 59.97449875 | G152: 6.37257576 | H152: 19 | I152: 1 | J152: 11.67742424 | K152: 0 | L152: 6.37257576 | P152: 43080.36985 | Q152: 400
D153: 0 | E153: 43080.37612 | F153: 59.97390747 | G153: 6.37257576 | H153: 19 | I153: 1 | J153: 11.67742424 | K153: 0 | L153: 6.37257576 | P153: 43080.36987 | Q153: 400
D154: 0 | E154: 43080.37615 | F154: 59.97259903 | G154: 6.37257576 | H154: 19 | I154: 1 | J154: 11.67742424 | K154: 0 | L154: 6.37257576 | P154: 43080.3699 | Q154: 400
D155: 0 | E155: 43080.37617 | F155: 59.97179794 | G155: 6.624339581 | H155: 19 | I155: 1 | J155: 11.42566042 | K155: 0 | L155: 6.624339581 | P155: 43080.36992 | Q155: 400
D156: 0 | E156: 43080.37619 | F156: 59.97129822 | G156: 6.995183945 | H156: 19 | I156: 1 | J156: 11.05481606 | K156: 0 | L156: 6.995183945 | P156: 43080.36994 | Q156: 400
D157: 0 | E157: 43080.37622 | F157: 59.97100067 | G157: 6.995183945 | H157: 19 | I157: 1 | J157: 11.05481606 | K157: 0 | L157: 6.995183945 | P157: 43080.36997 | Q157: 400
D158: 0 | E158: 43080.37624 | F158: 59.97160721 | G158: 6.995183945 | H158: 19 | I158: 1 | J158: 11.05481606 | K158: 0 | L158: 6.995183945 | P158: 43080.36999 | Q158: 400
D159: 0 | E159: 43080.37626 | F159: 59.97270203 | G159: 6.995183945 | H159: 19 | I159: 1 | J159: 11.05481606 | K159: 0 | L159: 6.995183945 | P159: 43080.37001 | Q159: 400
D160: 0 | E160: 43080.37628 | F160: 59.97260284 | G160: 7.257152081 | H160: 19 | I160: 1 | J160: 10.79284792 | K160: 0 | L160: 7.257152081 | P160: 43080.37003 | Q160: 400
D161: 0 | E161: 43080.37631 | F161: 59.97160339 | G161: 7.654416084 | H161: 19 | I161: 1 | J161: 10.39558392 | K161: 0 | L161: 7.654416084 | P161: 43080.37006 | Q161: 400
D162: 0 | E162: 43080.37633 | F162: 59.97100067 | G162: 7.654416084 | H162: 19 | I162: 1 | J162: 10.39558392 | K162: 0 | L162: 7.654416084 | P162: 43080.37008 | Q162: 400
D163: 0 | E163: 43080.37635 | F163: 59.9698143 | G163: 7.654416084 | H163: 19 | I163: 1 | J163: 10.39558392 | K163: 0 | L163: 7.654416084 | P163: 43080.3701 | Q163: 400
D164: 0 | E164: 43080.37638 | F164: 59.9679985 | G164: 7.654416084 | H164: 19 | I164: 1 | J164: 10.39558392 | K164: 0 | L164: 7.654416084 | P164: 43080.37013 | Q164: 400
D165: 0 | E165: 43080.3764 | F165: 59.96740341 | G165: 7.799510479 | H165: 19 | I165: 1 | J165: 10.25048952 | K165: 0 | L165: 7.799510479 | P165: 43080.37015 | Q165: 400
D166: 0 | E166: 43080.37642 | F166: 59.96649933 | G166: 8.020655632 | H166: 19 | I166: 1 | J166: 10.02934437 | K166: 0 | L166: 8.020655632 | P166: 43080.37017 | Q166: 400
D167: 0 | E167: 43080.37645 | F167: 59.96629715 | G167: 8.020655632 | H167: 19 | I167: 1 | J167: 10.02934437 | K167: 0 | L167: 8.020655632 | P167: 43080.3702 | Q167: 400
D168: 0 | E168: 43080.37647 | F168: 59.96559525 | G168: 8.020655632 | H168: 19 | I168: 1 | J168: 10.02934437 | K168: 0 | L168: 8.020655632 | P168: 43080.37022 | Q168: 400
D169: 0 | E169: 43080.37649 | F169: 59.96500015 | G169: 8.020655632 | H169: 19 | I169: 1 | J169: 10.02934437 | K169: 0 | L169: 8.020655632 | P169: 43080.37024 | Q169: 400
D170: 0 | E170: 43080.37652 | F170: 59.96420288 | G170: 8.225651741 | H170: 19 | I170: 1 | J170: 9.824348259 | K170: 0 | L170: 8.225651741 | P170: 43080.37027 | Q170: 400
D171: 0.008945367275 | E171: 43080.37654 | F171: 59.96260452 | G171: 8.533391953 | H171: 19 | I171: 1 | J171: 9.516608047 | K171: 0.008945367275 | L171: 4.595349691 | P171: 43080.37029 | Q171: 400
D172: =K172 -> 0.01280897092 | E172: 43080.37656 | F172: 59.9620018 | G172: 8.533391953 | H172: 19 | I172: 1 | J172: =IF($B$4="low",(H172-(H172*0.05))-G172,IF($B$4="high",G172-(I172+(I172 *0.05)),"error")) -> 9.516608047 | K172: 0.01280897092 | L172: 4.599213294 | P172: 43080.37031 | Q172: 400
D173: 0.01280897092 | E173: =IF(E172+TIME(0,0,$B$17) > $B$16,NA(),E172+TIME(0,0,$B$17)) -> 43080.37659 | F173: 59.9620018 | G173: 8.533391953 | H173: =IF(ISERROR(E173),NA(),H172) -> 19 | I173: =IF(ISERROR(E173),NA(),I172) -> 1 | J173: 9.516608047 | K173: =IF(ISERROR(E173),NA(),IF(F173<(60-$B$12),((-1)*H173*((F173-60+$B$12)/(60*$B$11-$B$12))),IF(F173>(60+$B$12),((-1)*H173*((F173-60-$B$12)/(60*$B$11-$B$12))),0))) -> 0.01280897092 | L173: =IF(ISERROR(E173),NA(),IF(G173<1,0,IF(K173=0,(G173+K173),($L$41+K173)))) -> 4.599213294 | P173: =P172+TIME(0,0,2) -> 43080.37034 | Q173: 400
D174: 0.01408053667 | E174: 43080.37661 | F174: 59.96180344 | G174: 8.533391953 | H174: 19 | I174: 1 | J174: 9.516608047 | K174: 0.01408053667 | L174: 4.60048486 | P174: 43080.37036 | Q174: 400
D175: 0.01474077274 | E175: 43080.37663 | F175: 59.96170044 | G175: 8.735013962 | H175: 19 | I175: 1 | J175: 9.314986038 | K175: 0.01474077274 | L175: 4.601145096 | P175: 43080.37038 | Q175: 400
D176: 0.01537655561 | E176: 43080.37666 | F176: 59.96160126 | G176: 9.046128273 | H176: 19 | I176: 1 | J176: 9.003871727 | K176: 0.01537655561 | L176: 4.601780879 | P176: 43080.37041 | Q176: 400
D177: 0.01924015925 | E177: 43080.37668 | F177: 59.96099854 | G177: 9.046128273 | H177: 19 | I177: 1 | J177: 9.003871727 | K177: 0.01924015925 | L177: 4.605644483 | P177: 43080.37043 | Q177: 400
D178: 0.02178329077 | E178: 43080.3767 | F178: 59.96060181 | G178: 9.046128273 | H178: 19 | I178: 1 | J178: 9.003871727 | K178: 0.02178329077 | L178: 4.608187614 | P178: 43080.37045 | Q178: 400
D179: 0.02948604486 | E179: 43080.37672 | F179: 59.95940018 | G179: 9.046128273 | H179: 19 | I179: 1 | J179: 9.003871727 | K179: 0.02948604486 | L179: 4.615890368 | P179: 43080.37047 | Q179: 400
D180: 0.03652856289 | E180: 43080.37675 | F180: 59.95830154 | G180: 9.2206707 | H180: 19 | I180: 1 | J180: 8.8293293 | K180: 0.03652856289 | L180: 4.622932886 | P180: 43080.3705 | Q180: 400
D181: 0.03718879895 | E181: 43080.37677 | F181: 59.95819855 | G181: 9.48561573 | H181: 19 | I181: 1 | J181: 8.56438427 | K181: 0.03718879895 | L181: 4.623593123 | P181: 43080.37052 | Q181: 400
D182: 0.03652856289 | E182: 43080.37679 | F182: 59.95830154 | G182: 9.48561573 | H182: 19 | I182: 1 | J182: 8.56438427 | K182: 0.03652856289 | L182: 4.622932886 | P182: 43080.37054 | Q182: 400
D183: 0.03073315743 | E183: 43080.37682 | F183: 59.95920563 | G183: 9.48561573 | H183: 19 | I183: 1 | J183: 8.56438427 | K183: 0.03073315743 | L183: 4.617137481 | P183: 43080.37057 | Q183: 400
D184: 0.01405608348 | E184: 43080.37684 | F184: 59.96180725 | G184: 9.48561573 | H184: 19 | I184: 1 | J184: 8.56438427 | K184: 0.01405608348 | L184: 4.600460407 | P184: 43080.37059 | Q184: 400
D185: 0.003834651067 | E185: 43080.37686 | F185: 59.96340179 | G185: 9.574058533 | H185: 19 | I185: 1 | J185: 8.475941467 | K185: 0.003834651067 | L185: 4.590238975 | P185: 43080.37061 | Q185: 400
D186: 0 | E186: 43080.37689 | F186: 59.96459579 | G186: 9.705359459 | H186: 19 | I186: 1 | J186: 8.344640541 | K186: 0 | L186: 9.705359459 | P186: 43080.37064 | Q186: 400
D187: 0 | E187: 43080.37691 | F187: 59.96569824 | G187: 9.705359459 | H187: 19 | I187: 1 | J187: 8.344640541 | K187: 0 | L187: 9.705359459 | P187: 43080.37066 | Q187: 400
D188: 0 | E188: 43080.37693 | F188: 59.96639633 | G188: 9.705359459 | H188: 19 | I188: 1 | J188: 8.344640541 | K188: 0 | L188: 9.705359459 | P188: 43080.37068 | Q188: 400
D189: 0 | E189: 43080.37696 | F189: 59.96739197 | G189: 9.705359459 | H189: 19 | I189: 1 | J189: 8.344640541 | K189: 0 | L189: 9.705359459 | P189: 43080.37071 | Q189: 400
D190: 0 | E190: 43080.37698 | F190: 59.96819305 | G190: 10.2497921 | H190: 19 | I190: 1 | J190: 7.800207901 | K190: 0 | L190: 10.2497921 | P190: 43080.37073 | Q190: 400
D191: 0 | E191: 43080.377 | F191: 59.96849823 | G191: 11.09707165 | H191: 19 | I191: 1 | J191: 6.952928352 | K191: 0 | L191: 11.09707165 | P191: 43080.37075 | Q191: 400
D192: 0 | E192: 43080.37703 | F192: 59.96849823 | G192: 11.09707165 | H192: 19 | I192: 1 | J192: 6.952928352 | K192: 0 | L192: 11.09707165 | P192: 43080.37078 | Q192: 400
D193: 0 | E193: 43080.37705 | F193: 59.96908951 | G193: 11.09707165 | H193: 19 | I193: 1 | J193: 6.952928352 | K193: 0 | L193: 11.09707165 | P193: 43080.3708 | Q193: 400
P194: 43080.37082 | Q194: 400
P195: 43080.37084 | Q195: 400
P196: 43080.37087 | Q196: 400
P197: 43080.37089 | Q197: 400
P198: 43080.37091 | Q198: 400
P199: 43080.37094 | Q199: 400
P200: 43080.37096 | Q200: 400
P201: 43080.37098 | Q201: 400
P202: 43080.37101 | Q202: 400
P203: 43080.37103 | Q203: 400
P204: 43080.37105 | Q204: 400
P205: 43080.37108 | Q205: 400
P206: 43080.3711 | Q206: 400
P207: 43080.37112 | Q207: 400
P208: 43080.37115 | Q208: 400
P209: 43080.37117 | Q209: 400
P210: 43080.37119 | Q210: 400
P211: 43080.37122 | Q211: 400
P212: 43080.37124 | Q212: 400
... 131 more rows

Sheet Sheet1
A1: =Event!B15 -> 2017-12-11T08:57:57 | E1: =_xll.PIAdvCalcDat(Sheet1!$A$5,Sheet1!$A$1,Sheet1!$A$2,Sheet1!$A$3,"average (time-weighted)","time-weighted",0,1,65,"") -> 2017-12-11T08:57:57 | F1: 60.01754291 | H1: 60.00318938
A2: =Event!B16 -> 2017-12-11T09:02:57 | E2: 2017-12-11T08:58:07 | F2: 60.0176145 | H2: 60.00147961
A3: 10s | E3: 2017-12-11T08:58:17 | F3: 60.0156206 | H3: 60.00145019
E4: 2017-12-11T08:58:27 | F4: 60.01525905 | H4: 60.0046997
A5: ca_rt_fq/pjmc:freq-agc freq:hz | E5: 2017-12-11T08:58:37 | F5: 60.01652155 | H5: 60.00107763
E6: 2017-12-11T08:58:47 | F6: 60.01316336 | H6: 60.00036009
E7: 2017-12-11T08:58:57 | F7: 59.97194462 | H7: 59.98184779
E8: 2017-12-11T08:59:07 | F8: 59.95889195 | H8: 59.94932106
E9: 2017-12-11T08:59:17 | F9: 59.96228987 | H9: 59.9525846
E10: 2017-12-11T08:59:27 | F10: 59.96323447 | H10: 59.94889144
E11: 2017-12-11T08:59:37 | F11: 59.96154384 | H11: 59.95168505
E12: 2017-12-11T08:59:47 | F12: 59.96268282 | H12: 59.95152342
E13: 2017-12-11T08:59:57 | F13: 59.9628056 | H13: 59.95000086
E14: 2017-12-11T09:00:07 | F14: 59.96147781 | H14: 59.94698225
E15: 2017-12-11T09:00:17 | F15: 59.96357821 | H15: 59.94847209
E16: 2017-12-11T09:00:27 | F16: 59.96508817 | H16: 59.95049151
E17: 2017-12-11T09:00:37 | F17: 59.96743253 | H17: 59.95266433
E18: 2017-12-11T09:00:47 | F18: 59.96924766 | H18: 59.95280553
E19: 2017-12-11T09:00:57 | F19: 59.96785843 | H19: 59.95399076
E20: 2017-12-11T09:01:07 | F20: 59.96893075 | H20: 59.95567702
E21: 2017-12-11T09:01:17 | F21: 59.97031711 | H21: 59.96083974
E22: 2017-12-11T09:01:27 | F22: 59.97348166 | H22: 59.96545306
E23: 2017-12-11T09:01:37 | F23: 59.97181881 | H23: 59.96622784
E24: 2017-12-11T09:01:47 | F24: 59.97183106 | H24: 59.9735483
E25: 2017-12-11T09:01:57 | F25: 59.96713288 | H25: 59.98035798
E26: 2017-12-11T09:02:07 | F26: 59.96349702 | H26: 59.9843316
E27: 2017-12-11T09:02:17 | F27: 59.96150535 | H27: 59.99095286
E28: 2017-12-11T09:02:27 | F28: 59.95872493 | H28: 59.99439258
E29: 2017-12-11T09:02:37 | F29: 59.96370929 | H29: 59.99438621
E30: 2017-12-11T09:02:47 | F30: 59.96805322 | H30: 60.00002887
